Cogmind - Beta 14 @@@ ROGUE MODE // 2024.11.14 @ 21:59:36 Player: Hinzy Result: Self-destructed Performance ------------- Evolutions (8) 4000 Regions Visited (13) 2600 Robots Destroyed (86) 430 Value Destroyed (3136) 3136 Prototype IDs (32) 640 Alien Tech Used (0) 0 Bonus (373) 373 TOTAL SCORE: 11179 Bonus ------- High Alert Combat Kills 73 Aligned with FarCom 300 Cogmind --------- Core Integrity 705/1450 Matter 165/300 Energy 2/100 System Corruption 8% Temperature Cool (0) Movement Rolling (100) Location -2/Research Parts ------- > --- POWER (2) -------- (None) > --- PROPULSION (8) --- Armored Huge Wheel Biomechanical Wings Q-thruster > --- UTILITY (10) ----- Advanced Cryofiber Web Medium Storage Unit Advanced Weight Redist. System Advanced Visual Processing Unit Advanced Sensor Array Experimental Signal Interpreter Improved Transmission Jammer > --- WEAPON (3) ------- (None) > --- INVENTORY (10) --- Weapon Mount Point Defense System Antimissile System Peak State ------------ > --- POWER ------------ Particle Reactor Quantum Reactor > --- PROPULSION ------- Nuclear Pulse Thruster Biomechanical Wings Impulse Thruster Impulse Thruster Impulse Thruster Q-thruster Impulse Thruster Array > --- UTILITY ---------- Power Amplifier Advanced Cryofiber Web Medium Storage Unit Advanced Weight Redist. System Advanced Sensor Array Experimental Signal Interpreter Advanced Melee Analysis Suite Improved Transmission Jammer Improved Cloaking Device Advanced Shield Generator > --- WEAPON ----------- Makeshift Axe > --- INVENTORY -------- Micro Nuclear Core Micro Antimatter Reactor Centrium Leg Armored Huge Wheel Biomechanical Wings Weapon Mount Point Defense System Antimissile System Compact HERF Cannon [Rating: 136] Favorites ----------- Power Reinforced Deuterium Engine Engine Reinforced Deuterium Engine Power Core Micro Nuclear Core Reactor Particle Reactor Propulsion Light Treads Treads Light Treads Leg Improved Titanium Leg Wheel Compact Wheel Flight Unit VTOL Module Utility Improved Heat Sink Device Improved Heat Sink Storage Large Storage Unit Processor Modified TNC Protection Core Shielding Weapon Gatling Laser Energy Gun Gatling Laser Energy Cannon Guided Plasma Cannon Ballistic Gun Minigun Ballistic Cannon Gauss Cannon Launcher Rocket Launcher Special Weapon Remote Datajack Slashing Weapon Makeshift Axe Special Melee Weapon Dirty Datajack Build | -11 -10 -10 -10 -9 -8 -7 -7 -7 -6 -5 -4 -3 -2 ------- Run | Yrd Mat Min Exi Min Mat Fac Low Low Fac Fac Fac Res Res Slots Evolved 16 | . . . . . 4 2 . . 2 2 2 2 2 Power 1 | . . . . . . . . . 1 . . . . Propulsion 6 | . . . . . 2 . . . . 2 . . 2 Utility 8 | . . . . . 2 2 . . . . 2 2 . Weapon 1 | . . . . . . . . . 1 . . . . Parts Attached 195 | 3 4 13 . 2 15 3 16 6 64 27 5 21 16 Power 25 | . . 2 . . 1 . . 1 10 1 . 5 5 Engine 13 | . . 2 . . 1 . . . 9 . . 1 . Core 5 | . . . . . . . . 1 1 1 . 1 1 Reactor 7 | . . . . . . . . . . . . 3 4 Propulsion 68 | 2 1 7 . 2 10 . 7 . 19 9 . 5 6 Treads 12 | . . 2 . . 3 . 6 . 1 . . . . Leg 15 | . . . . . 2 . . . 9 2 . . 2 Wheel 19 | 2 1 5 . 2 5 . 1 . 2 . . . 1 Hover . | . . . . . . . . . . . . . . Flight 22 | . . . . . . . . . 7 7 . 5 3 Utility 60 | . 2 1 . . 3 3 3 1 14 15 4 11 3 Device 29 | . 1 1 . . . 1 . 1 8 8 2 5 2 Storage 3 | . 1 . . . 1 . . . . . . 1 . Processor 13 | . . . . . 1 1 . . 1 4 1 4 1 Hackware . | . . . . . . . . . . . . . . Protection 15 | . . . . . 1 1 3 . 5 3 1 1 . Artifact . | . . . . . . . . . . . . . . Weapon 42 | 1 1 3 . . 1 . 6 4 21 2 1 . 2 Energy Gun 18 | 1 . 1 . . . . 2 2 10 1 . . 1 Energy Cannon 2 | . . . . . 1 . . . . . . . 1 Ballistic Gun 7 | . . 1 . . . . . . 5 1 . . . Ballistic Cannon 2 | . . . . . . . 2 . . . . . . Launcher 1 | . . 1 . . . . . . . . . . . Special Weapon 3 | . 1 . . . . . . . 2 . . . . Impact Weapon . | . . . . . . . . . . . . . . Slashing Weapon 7 | . . . . . . . 2 1 3 . 1 . . Piercing Weapon . | . . . . . . . . . . . . . . Special Melee Weapon 2 | . . . . . . . . 1 1 . . . . Unidentified Prototypes 4 | . . . . . . . . . 1 . 2 1 . Corrupted Parts 1 | . . 1 . . . . . . . . . . . System Corruption 1 | . . 1 . . . . . . . . . . . Parts Lost 43 | . 2 1 . 2 . . 4 1 10 6 . 3 14 Power 5 | . . 1 . . . . . . . . . 2 2 Propulsion 17 | . 1 . . 1 . . 1 . 5 4 . . 5 Utility 10 | . . . . . . . 2 1 2 1 . . 4 Weapon 11 | . 1 . . 1 . . 1 . 3 1 . 1 3 Highest Loss Streak 14 | . 2 1 . 2 . . 3 1 3 4 . 2 14 To Critical Strikes . | . . . . . . . . . . . . . . Average Slot Usage (%) 92 | . 91 93 100 76 98 100 99 95 90 89 92 88 82 Engine 7 | . 14 13 14 14 9 7 7 1 11 . . . . Core 1 | . . . . . . . . 5 . 10 10 4 . Treads 6 | . . . . . 10 . 22 30 4 . . . . Leg 3 | . . . . . 1 . . . 15 1 . . 1 Wheel 10 | . 25 26 28 17 23 30 7 . . . . . . Flight 7 | . . . . . . . . . 3 29 31 26 26 Device 13 | . 13 14 14 14 9 7 7 9 14 13 19 22 27 Storage 6 | . 14 14 14 14 9 7 7 7 5 . . . 4 Processor 6 | . . . . . 9 15 7 . . 15 15 19 9 Protection 9 | . . . . . 8 15 22 23 12 1 5 3 . Energy Gun 5 | . 14 16 . . . . 8 14 9 1 5 . . Energy Cannon 1 | . . . . . 9 7 . . . . . . . Ballistic Gun 2 | . . 1 14 1 . . . . 5 3 . . . Launcher 2 | . . 4 14 14 9 7 . . . . . . . Slashing Weapon 1 | . . . . . . . 2 . 2 5 5 4 3 Peak Build Rating 136 | 6 7 11 14 12 32 37 42 42 63 71 87 115 136 Average Rating 45 | 6 6 7 11 9 27 36 39 36 49 58 81 99 128 On Entrance 35 | 6 6 6 11 12 11 32 37 40 38 34 71 83 115 Naked Turns 24 | . . . . . . . . . 24 . . . . Heaviest Build 103 | 12 87 95 95 95 103 52 56 50 83 30 32 39 63 Greatest Support 82 | 32 32 32 32 32 52 52 82 82 82 36 32 43 69 Greatest Overweight (x) 15 | . 5 5 2 5 2 . 2 . 15 1 . . 3 Average Overweight (x) . | . 1 2 2 3 . . . . . . . . . Largest Inventory Capacity 25 | 8 25 25 25 25 25 15 15 15 15 5 5 10 10 Average Capacity 14 | 8 19 25 25 25 15 15 15 15 14 5 5 6 10 Most Carried 17 | 7 8 14 17 17 16 15 15 15 15 5 5 9 10 Average Carried 11 | 6 7 10 15 15 12 13 14 14 13 3 4 5 8 Final Capacity 25 | 8 25 25 25 25 15 15 15 15 5 5 5 10 10 Final Carried 17 | 6 8 14 16 17 14 14 15 14 4 5 4 9 3 Class Distribution -------------------- 36% | Mutant 26% | Scavenger-Mutant 12% | Scavenger-Sprinter 11% | Scavenger-Tank 6% | Infiltrator-Sprinter 3% | Scavenger-Scout Dominant Class ---------------- Mutant | -10/Materials Mutant | -10/Mines Scavenger-Mutant | -10/Exiles Mutant | -9/Mines Mutant | -8/Materials Mutant | -7/Factory Scavenger-Mutant | -7/Lower Caves Scavenger-Mutant | -7/Lower Caves Scavenger-Tank | -6/Factory Scavenger-Scout | -5/Factory Scavenger-Sprinter | -4/Factory Scavenger-Sprinter | -3/Research Infiltrator-Sprinter | -2/Research Resources | -11 -10 -10 -10 -9 -8 -7 -7 -7 -6 -5 -4 -3 -2 ----------- Run | Yrd Mat Min Exi Min Mat Fac Low Low Fac Fac Fac Res Res Matter Collected 2448 | 220 30 155 . 79 150 30 310 60 730 199 121 227 137 Remotely . | . . . . . . . . . . . . . . Salvage Created 3820 | 97 227 296 . 20 113 49 652 202 1070 251 88 223 532 Parts 188 | 6 4 12 . 2 5 5 34 12 44 19 13 7 25 Haulers Intercepted 4 | . . . . . 2 . . . . . . 1 1 Recyclers Shooed 4 | . 1 2 . . . . . . 1 . . . . Parts Field Recycled . | . . . . . . . . . . . . . . Retrieved Matter . | . . . . . . . . . . . . . . Parts Self-Destructed 50 | . . . . . . . 40 10 . . . . . Prevented . | . . . . . . . . . . . . . . Kills | -11 -10 -10 -10 -9 -8 -7 -7 -7 -6 -5 -4 -3 -2 ------- Run | Yrd Mat Min Exi Min Mat Fac Low Low Fac Fac Fac Res Res Combat Hostiles Destroyed 63 | . 3 4 . 1 . . 18 5 24 5 . . 3 Melee 24 | . . . . 1 . . 3 1 11 5 . . 3 Guns 21 | . 3 3 . . . . . 4 11 . . . . Cannons 12 | . . . . . . . 12 . . . . . . AOE 3 | . . . . . . . 3 . . . . . . Classes Destroyed 13 | 2 1 1 . 1 1 2 2 1 1 . 1 . . Worker 4 | . . . . . . . . . . . 3 1 . Builder 4 | . . 1 . . . . . . . 1 2 . . Tunneler 1 | 1 . . . . . . . . . . . . . Hauler 4 | . . . . . 2 . . . . . . 1 1 Recycler 5 | 1 1 1 . . . . . . . . . 1 1 Operator 1 | . . . . . . 1 . . . . . . . Watcher 4 | . . . . . . 1 . . 1 1 . . 1 Swarmer 18 | . . . . 1 . . 5 . 10 2 . . . Grunt 29 | . 3 4 . . . . 10 3 8 1 . . . Brawler 3 | . . . . . . . 1 1 1 . . . . Sentry 5 | . . . . . . . 2 . 2 . . . 1 Programmer 7 | . . . . . . . . . 3 2 . . 2 Master Thief 1 | . . . . . . . . 1 . . . . . Best Kill Streak 7 | 2 3 2 . 1 1 1 7 3 5 3 4 2 2 Combat Bots Only 7 | . 3 2 . 1 . . 7 3 5 3 . . 2 Max Kills in Single Turn 2 | 1 1 1 . 1 1 1 2 1 1 1 1 1 1 Gunslinging . | . . . . . . . . . . . . . . Exploded 2 | . . . . . . . 2 . . . . . . Melee 1 | . . . . 1 . . 1 1 1 1 . . 1 Uniques/NPCs Destroyed . | . . . . . . . . . . . . . . Combat | -11 -10 -10 -10 -9 -8 -7 -7 -7 -6 -5 -4 -3 -2 -------- Run | Yrd Mat Min Exi Min Mat Fac Low Low Fac Fac Fac Res Res Hostile Shots Fired 706 | . 21 34 . 12 . 2 79 27 324 60 . 50 97 Missed 235 | . 5 9 . 1 . 1 29 8 109 23 . 27 23 Damage Taken 8189 | . 174 378 . 231 . 14 779 214 3171 656 . 536 2036 Core 1859 | . 33 101 . 41 . . 44 31 624 133 . 107 745 Absorbed by Shields . | . . . . . . . . . . . . . . Redirected to Shielding 202 | . . . . . . 4 90 6 81 21 . . . Ignored by Resistances 148 | . . . . . . . . . 148 . . . . Regen/Repaired (Parts) 35 | . . . . . . . . . . . . 35 . Core Remaining (%) 77 | 100 . . . 30 100 . . 89 26 86 100 91 . Volleys Fired 184 | 4 25 29 . 4 4 2 30 19 50 5 . . 12 Largest 3 | 2 1 2 . 1 1 1 2 2 3 1 . . 1 Hottest 240 | 80 100 90 . 33 120 120 120 160 240 65 . . 94 Shots Fired 283 | 5 25 37 . 5 4 2 37 33 120 5 . . 10 Gun 221 | 5 23 36 . . . . . 33 117 5 . . 2 Cannon 48 | . . . . . 4 2 34 . . . . . 8 Launcher 9 | . . 1 . 5 . . 3 . . . . . . Special 5 | . 2 . . . . . . . 3 . . . . Kinetic 98 | . . . . . . . 22 . 76 . . . . Thermal 146 | 4 25 25 . . 4 2 12 33 41 . . . . Explosive 9 | . . 1 . 5 . . 3 . . . . . . Electromagnetic 27 | 1 . 11 . . . . . . . 5 . . 10 Robot Hit Streak 20 | 2 14 11 . . 4 6 18 6 20 2 . . 6 Robot Miss Streak 9 | 1 1 4 . 1 . . 2 9 6 1 . . 2 Penetration Max 1 | . . . . . . . 1 . . . . . . Secondary Targets 3 | . . . . . . . . 1 2 . . . . Max Gunslinging Chain 1 | . . . . . . . . 1 1 . . . . Shots Hit Robots 285 | 3 21 27 . . 4 2 39 29 106 16 5 12 21 Core Hits 153 | 3 8 10 . 2 2 2 25 20 56 8 3 4 10 Critical Kills . | . . . . . . . . . . . . . . Critical Parts Destroyed . | . . . . . . . . . . . . . . Critical Strikes 19 | . 3 4 . . . . 4 . 1 2 . 3 2 Burn 7 | . 3 4 . . . . . . . . . . . Blast 2 | . . . . . . . 2 . . . . . . Sever 10 | . . . . . . . 2 . 1 2 . 3 2 Melee Attacks 353 | . . . . . . . 15 4 68 91 16 104 55 Impact . | . . . . . . . . . . . . . . Slashing 344 | . . . . . . . 15 2 61 91 16 104 55 Piercing 9 | . . . . . . . . 2 7 . . . . Sneak Attacks 18 | . . . . . . . . . 4 3 5 3 3 Combat Hostiles 4 | . . . . . . . . . 4 . . . . Follow-up Attacks 2 | . . . . . . . 1 . 1 . . . . Damage Inflicted 8017 | 38 263 391 . 69 134 75 1486 547 2527 713 398 603 773 Guns 2753 | 38 263 329 . . . . . 468 1586 47 . . 22 Cannons 1203 | . . . . . 134 75 945 . . . . . 49 Explosions 299 | . . 52 . . . . 247 . . . . . . Melee 3683 | . . . . . . . 294 79 941 666 398 603 702 Ramming 79 | . . 10 . 69 . . . . . . . . . Kinetic 1285 | . . . . . . . 543 . 742 . . . . Thermal 2434 | 23 263 225 . . 134 75 402 468 844 . . . . Explosive 299 | . . 52 . . . . 247 . . . . . . Electromagnetic 237 | 15 . 104 . . . . . . . 47 . . 71 Impact . | . . . . . . . . . . . . . . Slashing 3664 | . . . . . . . 294 73 928 666 398 603 702 Piercing 19 | . . . . . . . . 6 13 . . . . Highest Corruption 8 | . 1 2 2 8 . . . . 5 3 5 . 8 Average Corruption 3 | . 1 1 2 7 . . . . 2 2 5 . 6 Corruption Purged . | . . . . . . . . . . . . . . Corruption Blocked . | . . . . . . . . . . . . . . Effects 49 | . 1 4 9 12 . . . . 10 5 4 . 4 Message Errors 9 | . . 1 2 1 . . . . 3 1 . . 1 Matter Fused 13 | . . 1 3 2 . . . . 2 3 1 . 1 Heat Flow Errors 6 | . . . 1 1 . . . . 2 1 1 . . Energy Discharges 3 | . . . . 2 . . . . . . 1 . . Parts Fused 1 | . . . . 1 . . . . . . . . . Data Loss (minor) 10 | . 1 1 3 3 . . . . 1 . 1 . . Data Loss (major) 2 | . . . . 1 . . . . 1 . . . . Misfires 1 | . . . . 1 . . . . . . . . . Alerts 1 | . . . . . . . . . 1 . . . . Weapon Failures 3 | . . 1 . . . . . . . . . . 2 Overload Shots . | . . . . . . . . . . . . . . Overflow Damage 325 | . . 22 . . . . 46 . 12 27 96 55 67 Projectiles 46 | . . . . . . . 46 . . . . . . Explosions 22 | . . 22 . . . . . . . . . . . Melee 257 | . . . . . . . . . 12 27 96 55 67 Knockbacks 2 | . . . . . . . 2 . . . . . . Impact . | . . . . . . . . . . . . . . Kinetic 2 | . . . . . . . 2 . . . . . . Secondary . | . . . . . . . . . . . . . . Self-Inflicted Damage 94 | . . 36 . 58 . . . . . . . . . Shots 2 | . . 1 . 1 . . . . . . . . . Rammed 12 | . . 2 . 9 . . . . . . . . 1 Targets Rammed 12 | . . 2 . 9 . . . . . . . . 1 Kicked . | . . . . . . . . . . . . . . Crushed . | . . . . . . . . . . . . . . Highest Temperature 402 | 18 250 304 134 111 100 44 203 402 373 142 . . 102 Average Temperature 96 | 12 94 90 76 56 43 24 62 187 115 29 . . 48 Received Heat Transfer 1582 | . 96 222 . . . 9 282 126 730 72 . 9 36 Effects 9 | . 2 . . . . . . 6 1 . . . . Shutdowns 1 | . . . . . . . . 1 . . . . . Interference 8 | . 2 . . . . . . 5 1 . . . . Siege Activations . | . . . . . . . . . . . . . . Robots Corrupted . | . . . . . . . . . . . . . . Combat Hostiles . | . . . . . . . . . . . . . . Parts Fried . | . . . . . . . . . . . . . . Impact Corruptions 1 | . . . . 1 . . . . . . . . . Robots Melted 3 | . . 1 . . . . . . 2 . . . . Combat Hostiles 3 | . . 1 . . . . . . 2 . . . . Parts Melted 17 | . 3 4 . . . . 3 . 7 . . . . Heat Transferred 6438 | 50 999 962 . . 320 160 960 1075 1912 . . . . Parts Sabotaged 4 | . . . . . . . . . 4 . . . . Parts Stolen 2 | . . . . . . . . 2 . . . . . Parts Stripped . | . . . . . . . . . . . . . . Power Chain Reactions . | . . . . . . . . . . . . . . Alert | -11 -10 -10 -10 -9 -8 -7 -7 -7 -6 -5 -4 -3 -2 ------- Run | Yrd Mat Min Exi Min Mat Fac Low Low Fac Fac Fac Res Res Peak Influence 559 | 10 124 150 . 56 41 78 . . 559 494 303 418 296 Initial 273 | . 6 54 . . 21 18 . . 65 273 241 159 133 Average 160 | 7 39 74 . 35 25 36 . . 177 346 265 256 217 Maximum Alert Level 2 | . . . . . . . . . 2 2 1 2 1 Low Security (%) 64 | 100 100 100 . 100 100 100 . . 71 . . 26 38 Level 1 30 | . . . . . . . . . 22 80 100 64 61 Level 2 4 | . . . . . . . . . 5 19 . 9 . Level 3 . | . . . . . . . . . . . . . . Level 4 . | . . . . . . . . . . . . . . Level 5 . | . . . . . . . . . . . . . . High Security . | . . . . . . . . . . . . . . Max Security . | . . . . . . . . . . . . . . Squads Dispatched 29 | . 2 . . . 1 6 . . 8 5 . 5 2 Investigation 14 | . 2 . . . . 2 . . 3 4 . 3 . Extermination 7 | . . . . . . 1 . . 3 1 . 1 1 Reinforcement 3 | . . . . . 1 . . . . . . 1 1 Assault 2 | . . . . . . . . . 2 . . . . Garrison 3 | . . . . . . 3 . . . . . . . Intercept . | . . . . . . . . . . . . . . Searches Triggered 1 | . . . . . . . . . . . . 1 . Construction Impeded . | . . . . . . . . . . . . . . Haulers Reinforced 1 | . . . . . . . . . . . . 1 . Active Scanning Responses . | . . . . . . . . . . . . . . Cargo Convoy Interrupts . | . . . . . . . . . . . . . . Stealth | -11 -10 -10 -10 -9 -8 -7 -7 -7 -6 -5 -4 -3 -2 --------- Run | Yrd Mat Min Exi Min Mat Fac Low Low Fac Fac Fac Res Res Distress Signals 3 | . 1 . . . . . . . . 1 . 1 . Communications Jammed 11 | . . . . . . . . . . . . 11 . Distress Signals 11 | . . . . . . . . . . . . 11 . Times Spotted 131 | . 6 5 . 3 . 7 18 8 47 12 . 16 9 Peak Tracking Total 12 | . 3 2 . 3 . 2 7 4 12 6 . 7 4 Tactical Retreats 20 | . 2 . . . . . . 1 6 4 . 6 1 Traps | -11 -10 -10 -10 -9 -8 -7 -7 -7 -6 -5 -4 -3 -2 ------- Run | Yrd Mat Min Exi Min Mat Fac Low Low Fac Fac Fac Res Res Traps Triggered 4 | . . . . . . . . . 1 1 . 2 . Indirectly . | . . . . . . . . . . . . . . Trap Hack Attempts . | . . . . . . . . . . . . . . Triggered . | . . . . . . . . . . . . . . Disarmed . | . . . . . . . . . . . . . . Reprogrammed . | . . . . . . . . . . . . . . Reused 2 | . . . . 1 . 1 . . . . . . . Traps Extracted . | . . . . . . . . . . . . . . Installed 3 | . . . . 1 . 2 . . . . . . . Triggered 2 | . . . . 1 . 1 . . . . . . . Most Traps Carried 4 | . . 4 4 4 3 3 1 . . . . . . Machines | -11 -10 -10 -10 -9 -8 -7 -7 -7 -6 -5 -4 -3 -2 ---------- Run | Yrd Mat Min Exi Min Mat Fac Low Low Fac Fac Fac Res Res Machines Disabled 3 | . . . . . . . 1 . 1 . . . 1 Max in Single Turn 1 | . . . . . . . 1 . 1 . . . 1 Garrison Access 1 | . . . . . . . . . 1 . . . . Machines Repaired . | . . . . . . . . . . . . . . Machines Dismantled . | . . . . . . . . . . . . . . Machines Sabotaged . | . . . . . . . . . . . . . . Overloaded Fab Kills . | . . . . . . . . . . . . . . Hacking | -11 -10 -10 -10 -9 -8 -7 -7 -7 -6 -5 -4 -3 -2 --------- Run | Yrd Mat Min Exi Min Mat Fac Low Low Fac Fac Fac Res Res Machines Accessed 35 | . 6 1 1 . 1 4 3 . 8 4 . 6 1 Terminals 19 | . 5 1 . . 1 1 1 . 3 2 . 4 1 Fabricators 3 | . . . . . . 1 . . 2 . . . . Repair Stations 2 | . . . . . . . . . 1 . . 1 . Recycling Units 2 | . 1 . . . . . . . 1 . . . . Scanalyzers 4 | . . . . . . 1 . . . 2 . 1 . Garrison Access 2 | . . . . . . 1 . . 1 . . . . Total Hacks 75 | . 17 2 1 . 1 7 7 . 18 8 . 10 4 Successful 33 | . 9 1 1 . 1 1 7 . 5 3 . 4 1 Failed 42 | . 8 1 . . . 6 . . 13 5 . 6 3 Catastrophic 10 | . 1 1 . . . 2 . . 4 . . 2 . Database Lockouts . | . . . . . . . . . . . . . . Manual 51 | . 14 2 1 . 1 6 . . 16 6 . 5 . Terminals 48 | . 14 2 . . 1 2 5 . 9 5 . 6 4 Fabricators 7 | . . . . . . 3 . . 4 . . . . Repair Stations 5 | . . . . . . . . . 2 . . 3 . Recycling Units 5 | . 3 . . . . . . . 2 . . . . Scanalyzers 5 | . . . . . . 1 . . . 3 . 1 . Garrison Access 2 | . . . . . . 1 . . 1 . . . . Terminal Hacks 17 | . 2 1 1 . 1 . 7 . . 1 . 3 1 Record 8 | . 1 . . . . . 5 . . 1 . 1 . Robot Analysis 1 | . . 1 . . . . . . . . . . . Prototype ID Bank 1 | . . . . . . . . . . . . . 1 Open Door 2 | . . . . . . . 2 . . . . . . Open DSF 2 | . . . . . . . . . . . . 2 . Terminal Index 1 | . 1 . . . . . . . . . . . . Zone Layout 1 | . . . . . 1 . . . . . . . . Derelict Proto ID Bank 1 | . . . 1 . . . . . . . . . . Fabricator Hacks 1 | . . . . . . . . . 1 . . . . Network Status 1 | . . . . . . . . . 1 . . . . Repair Station Hacks . | . . . . . . . . . . . . . . Recycling Unit Hacks . | . . . . . . . . . . . . . . Scanalyzer 1 | . . . . . . . . . . 1 . . . Insert Component 1 | . . . . . . . . . . 1 . . . Garrison Access Hacks . | . . . . . . . . . . . . . . Unauthorized Hacks 13 | . 6 . . . . 1 . . 4 1 . 1 . Terminals 5 | . 4 . . . . . . . 1 . . . . Botnet 2 | . 1 . . . . . . . 1 . . . . Disrupt 1 | . 1 . . . . . . . . . . . . Skim 2 | . 2 . . . . . . . . . . . . Fabricators 1 | . . . . . . . . . 1 . . . . Liberate 1 | . . . . . . . . . 1 . . . . Repair Stations 1 | . . . . . . . . . . . . 1 . Patch 1 | . . . . . . . . . . . . 1 . Recycling Units 4 | . 2 . . . . . . . 2 . . . . Monitor 2 | . 1 . . . . . . . 1 . . . . Recyclers 2 | . 1 . . . . . . . 1 . . . . Scanalyzers 2 | . . . . . . 1 . . . 1 . . . Extract 2 | . . . . . . 1 . . . 1 . . . Garrison Access . | . . . . . . . . . . . . . . Data Cores Recovered 2 | . . . . . . 2 . . . . . . . Used . | . . . . . . . . . . . . . . Hacking Detections 26 | . 6 1 . . . 3 1 . 7 3 . 4 1 Full Trace Events 14 | . 3 1 . . . 1 1 . 3 3 . 2 . Feedback Events 1 | . 1 . . . . . . . . . . . . Corruption 1 | . 1 . . . . . . . . . . . . Feedback Blocked . | . . . . . . . . . . . . . . Robot Schematics Acquired . | . . . . . . . . . . . . . . Robots Built . | . . . . . . . . . . . . . . Authchips . | . . . . . . . . . . . . . . Time . | . . . . . . . . . . . . . . Total Robot Build Rating . | . . . . . . . . . . . . . . Part Schematics Acquired 9 | . . . . . . 1 . . . 8 . . . Parts Built . | . . . . . . . . . . . . . . Authchips . | . . . . . . . . . . . . . . Time . | . . . . . . . . . . . . . . Total Part Build Rating . | . . . . . . . . . . . . . . Parts Repaired . | . . . . . . . . . . . . . . Time . | . . . . . . . . . . . . . . Parts Recycled . | . . . . . . . . . . . . . . Recycled Matter . | . . . . . . . . . . . . . . Retrieved Matter . | . . . . . . . . . . . . . . Retrieved Components . | . . . . . . . . . . . . . . Parts Scanalyzed 1 | . . . . . . . . . . 1 . . . Part Schematics Acquired . | . . . . . . . . . . . . . . Parts Damaged . | . . . . . . . . . . . . . . Bothacking | -11 -10 -10 -10 -9 -8 -7 -7 -7 -6 -5 -4 -3 -2 ------------ Run | Yrd Mat Min Exi Min Mat Fac Low Low Fac Fac Fac Res Res Used RIF Installer . | . . . . . . . . . . . . . . Robots Hacked . | . . . . . . . . . . . . . . Non-combat . | . . . . . . . . . . . . . . Combat . | . . . . . . . . . . . . . . Robot Hacks Applied . | . . . . . . . . . . . . . . Relay Couplers Released 1 | . . . . . . . . . 1 . . . . Machine Destruction 1 | . . . . . . . . . 1 . . . . Fabnet Peak Effective % . | . . . . . . . . . . . . . . Robots Rewired . | . . . . . . . . . . . . . . Allies Hacked . | . . . . . . . . . . . . . . Hacks Repelled . | . . . . . . . . . . . . . . Allies | -11 -10 -10 -10 -9 -8 -7 -7 -7 -6 -5 -4 -3 -2 -------- Run | Yrd Mat Min Exi Min Mat Fac Low Low Fac Fac Fac Res Res Total Allies . | . . . . . . . . . . . . . . Largest Group . | . . . . . . . . . . . . . . Highest-Rated Group . | . . . . . . . . . . . . . . Highest-Rated Ally . | . . . . . . . . . . . . . . Total Orders . | . . . . . . . . . . . . . . Ally Attacks . | . . . . . . . . . . . . . . Total Damage . | . . . . . . . . . . . . . . Kills . | . . . . . . . . . . . . . . Allies Corrupted . | . . . . . . . . . . . . . . Allies Melted . | . . . . . . . . . . . . . . Intel | -11 -10 -10 -10 -9 -8 -7 -7 -7 -6 -5 -4 -3 -2 ------- Run | Yrd Mat Min Exi Min Mat Fac Low Low Fac Fac Fac Res Res Robot Analysis Total 1 | . . 1 . . . . . . . . . . . Derelict Logs Recovered 3 | . . 2 . . . . 1 . . . . . . Drone Launches . | . . . . . . . . . . . . . . Drone Recoveries . | . . . . . . . . . . . . . . Exploration | -11 -10 -10 -10 -9 -8 -7 -7 -7 -6 -5 -4 -3 -2 ------------- Run | Yrd Mat Min Exi Min Mat Fac Low Low Fac Fac Fac Res Res Turns Passed 8389 | 42 301 675 549 359 347 646 1495 164 1808 712 207 652 432 Spaces Moved 6500 | 28 142 400 420 117 162 493 996 59 982 904 181 997 619 Core 51 | . . . . . . . . . 48 . . . 3 Treads 709 | . . . . . . . 527 59 123 . . . . Legs 593 | 1 . . . . . . . . 582 . . . 10 Wheels 2258 | 27 142 400 420 117 162 493 469 . 25 . . . 3 Hover . | . . . . . . . . . . . . . . Flight 2889 | . . . . . . . . . 204 904 181 997 603 Fastest Speed 22 | 100 100 130 130 130 92 92 92 156 27 22 23 23 22 Average Speed 84 | 100 124 140 130 154 99 92 135 156 129 25 23 24 25 Slowest Speed 1255 | 120 175 175 130 175 126 92 320 156 1255 102 23 29 200 Overloaded Moves . | . . . . . . . . . . . . . . Propulsion Burnouts . | . . . . . . . . . . . . . . Robots Hopped 2 | . . . . . . . . . . . . 2 . Cave-ins Triggered . | . . . . . . . . . . . . . . Exploration Rate (%) 32 | 4 32 84 80 26 16 16 94 11 24 22 7 28 8 Regions Visited 13 Branch Regions 5 Pre-discovered Areas 3 | . . 2 . . . . 1 . . . . . . Known Exits Taken 3 | . . . . . . . . . . 1 1 1 . Unknown Exits Taken 10 | 1 1 1 1 1 1 1 1 1 1 . . . . Scrap Searched 6 | . . 1 . 2 . . 3 . . . . . . Spaces Dug 244 | . 2 . . 25 . . . . 16 71 11 88 31 Terrain Destroyed 293 | . 2 9 . 47 . . 18 . 16 71 11 88 31 Melee 217 | . . . . . . . . . 16 71 11 88 31 Projectile 6 | . 2 . . . . . 4 . . . . . . AOE 70 | . . 9 . 47 . . 14 . . . . . . Terrain Rammed . | . . . . . . . . . . . . . . Walls Destroyed . | . . . . . . . . . . . . . . Machines Disabled . | . . . . . . . . . . . . . . Actions | -11 -10 -10 -10 -9 -8 -7 -7 -7 -6 -5 -4 -3 -2 --------- Run | Yrd Mat Min Exi Min Mat Fac Low Low Fac Fac Fac Res Res Total 8757 | 36 236 470 423 285 347 685 1087 88 1360 1284 330 1297 829 Wait 1340 | . 63 16 . 151 142 173 11 . 157 226 123 161 117 Move 6483 | 27 141 399 419 116 161 492 995 58 981 903 180 992 619 Hop 2 | . . . . . . . . . . . . 2 . Pick Up 75 | 1 2 6 3 1 13 7 11 . 9 12 1 6 3 Fast Attach 78 | . 2 4 . 1 2 . . 2 33 17 4 10 3 Attach 50 | 1 . 2 . . 8 2 7 . 8 6 1 6 9 Detach 19 | . . 1 . . 4 . 2 . 5 3 1 2 1 Swap 68 | 2 2 7 . 1 5 1 9 4 24 4 . 5 4 Drop 92 | 1 1 4 1 1 8 6 8 1 26 17 4 9 5 Fire 184 | 4 25 29 . 4 4 2 30 19 50 5 . . 12 Melee 350 | . . . . . . . 14 4 66 91 16 104 55 Ram 12 | . . 2 . 9 . . . . . . . . 1 Kick . | . . . . . . . . . . . . . . Crush . | . . . . . . . . . . . . . . Escape Stasis . | . . . . . . . . . . . . . . Rewire 1 | . . . . . . . . . 1 . . . . Trap 3 | . . . . 1 . 2 . . . . . . . Miscellaneous . | . . . . . . . . . . . . . . Route ------- -11/Scrapyard -10/Materials (discovered 2 exits: [*Mat] / *Min) -10/Mines (discovered 2 exits: [*Mat] / *Exi) -10/Exiles -9/Mines -8/Materials -7/Factory -7/Lower Caves -7/Lower Caves -6/Factory (discovered 2 exits: *Fac x2) -5/Factory -4/Factory -3/Research -2/Research History --------- Turn | Location | Event 1 | -11/Scrapyard | Discovered new exit (range 2) 43 | -11/Scrapyard | Entered Materials 182 | -10/Materials | Discovered new exit (range 14) 321 | -10/Materials | Build established: Mutant 330 | -10/Materials | Discovered new exit (range 12) 344 | -10/Materials | Entered Mines 412 | -10/Mines | Found a hidden stash of uninstalled traps 529 | -10/Mines | Discovered new exit (range 16) 800 | -10/Mines | Received a Rocket Launcher from a helpful Derelict 837 | -10/Mines | Core integrity fell below 50% 949 | -10/Mines | Joined a pair of Derelicts in attacking an 0b10 outpost 1012 | -10/Mines | Deemed a non-threat by the Exiles lab entrance 1014 | -10/Mines | Discovered new exit (range 5) 1019 | -10/Mines | Entered Exiles 1053 | -10/Exiles | Met 8R-AWN 1078 | -10/Exiles | Met EX-HEX 1116 | -10/Exiles | Met EX-BIN 1134 | -10/Exiles | Aligned with FarCom system 1135 | -10/Exiles | Given EX-Vault access code 1166 | -10/Exiles | Opened EX-Vault 1173 | -10/Exiles | Found Modified TNC 1176 | -10/Exiles | Found Gui. Plasma Cannon 1181 | -10/Exiles | Found Chronowheel 1223 | -10/Exiles | Warned to stay clear of 0b10 Research branches 1260 | -10/Exiles | Build established: Scavenger-Mutant 1310 | -10/Exiles | Met EX-DEC 1383 | -10/Exiles | Visited The Gauntlet 1556 | -10/Exiles | Discovered new exit (range 10) 1568 | -10/Exiles | Stole two prototypes: Modified TNC, Gui. Plasma Cannon 1568 | -10/Exiles | Entered Mines 1618 | -9/Mines | Met a Derelict bent on vengeance 1865 | -9/Mines | Discovered new exit (range 13) 1898 | -9/Mines | Build established: Mutant 1927 | -9/Mines | Entered Materials 1927 | -8/Materials | Evolved 4 slots: Propulsion x2, Utility x2 2155 | -8/Materials | Met 7R-MNS 2258 | -8/Materials | Discovered new exit (range 15) 2274 | -8/Materials | Entered Factory 2274 | -7/Factory | Evolved 2 slots: Utility x2 2275 | -7/Factory | Caught up to 7R-MNS 2276 | -7/Factory | FarCom data flow suspended 2314 | -7/Factory | Garrison activated, responded to threat 2905 | -7/Factory | Discovered new exit (range 14) 2920 | -7/Factory | Entered Lower Caves 2964 | -7/Lower Caves | Destroyed 7 combat bots 2999 | -7/Lower Caves | Attracted the attention of an 0b10 base 3060 | -7/Lower Caves | Learned Armory security intel 3064 | -7/Lower Caves | Destroyed 7 combat bots 3067 | -7/Lower Caves | Lost 3 parts (1n1u1w) 3211 | -7/Lower Caves | Encountered a Warlord checkpoint 3438 | -7/Lower Caves | Learned location of Extension (-6) 3583 | -7/Lower Caves | Attracted the attention of an 0b10 checkpoint 3898 | -7/Lower Caves | Build established: Scavenger-Mutant 4397 | -7/Lower Caves | Discovered new exit (range 11) 4415 | -7/Lower Caves | Entered another Lower Caves area 4415 | -7/Lower Caves | Spotted DP-HS6(f) 4417 | -7/Lower Caves | Encountered a Master Thief 4417 | -7/Lower Caves | Spotted FP-FGN(f) 4418 | -7/Lower Caves | Encountered a Master Thief 4421 | -7/Lower Caves | Gui. Plasma Cannon stolen by Master Thief 4445 | -7/Lower Caves | Destroyed FP-FGN(f) 4484 | -7/Lower Caves | Discovered new exit (range 15) 4579 | -7/Lower Caves | Entered Factory 4579 | -6/Factory | Evolved 2 slots: Power x1, Weapon x1 4802 | -6/Factory | Discovered new exit (range 9) 4889 | -6/Factory | Lost 3 parts (3n) 5946 | -6/Factory | Build established: Scavenger-Tank 6239 | -6/Factory | Released all parts (12) 6258 | -6/Factory | Core integrity fell below 50% 6269 | -6/Factory | Lost 3 parts (1u2w) 6329 | -6/Factory | First assault squad dispatched 6380 | -6/Factory | Discovered new exit (range 4) 6387 | -6/Factory | Entered another Factory area 6387 | -5/Factory | Evolved 2 slots: Propulsion x2 6753 | -5/Factory | Build established: Scavenger-Scout 6886 | -5/Factory | Lost 4 parts (3n1w) 7092 | -5/Factory | Discovered new exit (range 4) 7099 | -5/Factory | Identified exit to Factory 7099 | -5/Factory | Entered another Factory area 7099 | -4/Factory | Evolved 2 slots: Utility x2 7258 | -4/Factory | Build established: Scavenger-Sprinter 7275 | -4/Factory | Discovered new exit (range 16) 7306 | -4/Factory | Identified exit to Research 7306 | -4/Factory | Entered Research 7306 | -3/Research | Evolved 2 slots: Utility x2 7371 | -3/Research | Spotted B-86 Titan 7491 | -3/Research | Found Prototype Processor 7556 | -3/Research | Search patrols dispatched 7558 | -3/Research | Identified Exp. Signal Interpreter 7954 | -3/Research | Discovered new exit (range 13) 7958 | -3/Research | Identified exit to Research 7958 | -3/Research | Entered another Research area 7958 | -2/Research | Evolved 2 slots: Propulsion x2 8055 | -2/Research | Build established: Infiltrator-Sprinter 8228 | -2/Research | Spotted B-90 Cyclops 8389 | -2/Research | Core integrity fell below 50% 8390 | -2/Research | Self-destructed Last Messages --------------- 08363_ R-10 Processor collects Adv. Heat Sink. 08364_ Y-72 Warden destroyed. 08366_ R-10 Processor collects Adv. Heat Sink. 08367_ Sneak attack on R-10 Processor. 08367_ Destroyed Com. Wheel. 08367_ R-10 Processor destroyed. 08369_ Knocked back. 08370_ Centrium Leg severed. 08373_ Adv. Melee Analysis Suite destroyed. 08374_ Imp. Cloaking Device destroyed. 08375_ Mic. Antimatter Reactor severed. 08376_ Mak. Axe destroyed. 08377_ Acquired Gamma Rifle. 08381_ 60GZ2BZ/KX>K#V4DV%QCLD54EHDD>SK3 08382_ Quantum Reactor destroyed. 08382_ System corrupted: Gamma Rifle failed to cycle. 08384_ Gamma Rifle destroyed. 08387_ Slammed into C-57 Dissector. 08388_ Impulse Thruster Array destroyed. Map ----- +----------------------------------------------------+ | ## # #??# #??? | | ###### # #??# #??? | | # # ! ##?# #??? | | # "" "" ###+########?# #??? | | "" # """"" ##"#### #??? | | "" + # !! # #??? | | "" # # !! # #??? | | "" # # + #??? | | "" # ###+######### # ! # #??? | | ######## """ #??# ##+#### #??? | | #??????# """ #??# #??? | | ######??????# """ #??# #??? | | ????????????# #### #??? | | ????????????# + #??? | | ????????????# ## """ #??? | | ??#########?# # "" #??? | | ??# #?# """ #??? | | ### ##### #?# #??? | | #???# #?##+##+#### ==* #??? | | #???# #??# #?# %!%! #??? | | ####### #??# #?# *!![ #??? | | # ## ##?# #?# ==![ #??? | | # # ### ### = ######??? | | + # =!!!* *c! #????? | | ### # ##############cc #????? | | ??# #####????????????#@c #????? | | ??# #????????????????# #????? | | ??######????????????????# #????? | | ????????????????????????#########????? | | | | | | | | | | | | | | | | | | | | | | | | | | | | | | | | | | | | | | | | | | | +----------------------------------------------------+ Best States ------------- Heat Dissipation 84 Energy Generation 50 Energy Capacity 590 Matter Stores 300 Matter Capacity 300 Sight Range 22 Robot Scan Range 16 Terrain Scan Density 10 Jamming Range 14 Cloak Strength 3 Power Amplification 20 Additional Mass Support 9 Base Temperature (-) 200 Armor Coverage 225 Resistance: KI 30 Resistance: EM 15 Core Shielding 20 Power Shielding 66 Propulsion Shielding 33 Utility Shielding 66 Weapon Shielding 33 Point Defense Rating 240 Evasion (%) 65 Targeting Accuracy 5 Melee Accuracy 8 Target Analysis 5 Core Analysis 6 Recoil Reduction 4 Item Schematics ----------------- Imp. Field Recycling Unit | -7/Factory | Extracted Lrn. Proton Cannon | -5/Factory | Extracted Lgt. Neutrino Core | -5/Factory | Extracted Launcher Guidance Computer | -5/Factory | Extracted Thunder Hammer | -5/Factory | Extracted Wave Gun | -5/Factory | Extracted Proton Cannon | -5/Factory | Extracted Melee Analysis Suite | -5/Factory | Extracted EM Disruption Field | -5/Factory | Extracted Robot Schematics ------------------ None Fabricated ------------ Nothing Alien Tech Used ----------------- None Achievements -------------- Factory Defaults Watch This! Challenges ------------ None Game ------ Seed AdvancedAntigravSubcomponent Manual? 0 Play Time 03:10:39 Cumulative 52.5 hours Start 2024.11.14 @ 02:39:15 End 2024.11.14 @ 21:59:36 Sessions 1 Manual Loads 0 Difficulty Rogue Special Mode None Game No. 33 Rogue 33 Adventurer 0 Explorer 0 Win Type - Total 0 Types 0/0/0/0/0/0/0/0/0 Lore% 33 Gallery% 38 Achievement% 32 Wizard Run 0 Options --------- Layout 2 ASCII 0 Keyboard 0 Movement Mouse Keybinds 0 Fullscreen 1 Font 24/Smallcaps Map View 50x44 Zoom Use 0% Tactical HUD 1 Map Filters NONE Filters NONE Steam 1 RUN: b38682aa-e82b-4b9c-a5bb-3a69e24c8f72